fUSD/lending_fUSD_20240104
["ID","MTS","AMOUNT","RATE_DAILY","PERIOD"]
[310198963,1704397878790,-500.0,0.0003452,2]
[310198964,1704397878799,-524.82,0.0003452,2]
[310198965,1704397878808,-2024.49,0.0003452,2]
[310198966,1704397878818,-500.0,0.0003452,2]
[310198967,1704397878827,-500.0,0.0003452,2]
[310198968,1704397878836,-188.44,0.00034553,2]
[310198969,1704397878846,-293.32,0.00034613,2]
[310198970,1704397878855,-150.0,0.00034613,2]
[310198971,1704397878864,-293.32,0.00034613,2]
[310198972,1704397878874,-293.32,0.00034613,2]
[310198973,1704397878882,-534.68,0.00034613,2]
[310198974,1704397878892,-500.0,0.00034619,2]
[310198975,1704397878901,-151.0,0.0003462,7]
[310198976,1704397878911,-151.0,0.0003462,7]
[310198977,1704397878920,-500.0,0.0003462,2]
[310198978,1704397878929,-1352.0,0.00034626,2]
[310198979,1704397878938,-263.744,0.00034626,2]
[310198980,1704397878949,-1846.0,0.00034626,2]
[310198981,1704397878958,-833.0,0.00034626,2]
[310198982,1704397878968,-943.0,0.00034626,2]
[310198983,1704397878977,-699.0,0.00034626,2]
[310198984,1704397878986,-1257.0,0.00034626,2]
[310198985,1704397878995,-1234.0,0.00034626,2]
[310198986,1704397879006,-779.135,0.00034626,2]
[310198987,1704397879015,-317.0,0.00034626,2]
[310198988,1704397879025,-549.343,0.00034626,2]
[310198989,1704397879034,-262.0,0.00034626,2]
[310198990,1704397879043,-234.0,0.00034626,2]
[310198991,1704397879052,-2264.0,0.00034626,2]
[310198992,1704397879061,-19638.0,0.00034626,2]
[310198993,1704397879071,-2893.0,0.00034626,2]
[310198994,1704397879081,-1584.502,0.00034626,2]
[310198995,1704397879091,-150.0,0.00034626,2]
[310198996,1704397879100,-150.0,0.00034626,2]
[310198997,1704397879109,-151.69832518,0.0003465,2]
[310198998,1704397879119,-180.0,0.00034658,2]
[310198999,1704397879128,-154.1,0.000347,2]
[310199000,1704397879136,-154.1,0.000347,2]
[310199001,1704397879146,-154.1,0.000347,2]
[310199002,1704397879155,-154.1,0.000347,2]
[310199003,1704397879164,-154.1,0.000347,2]
[310199004,1704397879173,-154.1,0.000347,2]
[310199005,1704397879182,-199.44,0.00034703,2]
[310199006,1704397879193,-1820.04691551,0.00034751,7]
[310199007,1704397879202,-153.84,0.00034788,2]
[310199008,1704397879212,-598.17,0.00034793,2]
[310199009,1704397879221,-500.0,0.00034794,2]
[310199010,1704397879231,-500.0,0.00034794,2]
[310199011,1704397879240,-500.0,0.00034794,2]
[310199012,1704397879250,-1807.31,0.00034794,2]
[310199013,1704397879259,-632.24309031,0.00034794,2]
[310199014,1704397879269,-231.4689337,0.00034794,2]
[310199015,1704397879278,-500.0,0.00034794,2]
[310199016,1704397879288,-265.31071769,0.00034794,2]
[310199017,1704397879297,-500.0,0.00034794,2]
[310199018,1704397879307,-180.42471556,0.00034794,2]
[310199019,1704397879316,-500.0,0.00034794,2]
[310199020,1704397879325,-338.90031376,0.00034794,2]
[310199021,1704397879333,-500.0,0.00034794,2]
[310199022,1704397879343,-500.0,0.00034794,2]
[310199023,1704397879352,-500.0,0.00034794,2]
[310199024,1704397879362,-500.0,0.00034794,2]
[310199025,1704397879371,-500.0,0.00034794,2]
[310199026,1704397879380,-500.0,0.00034794,2]
[310199027,1704397879390,-500.0,0.00034794,2]
[310199028,1704397879399,-500.0,0.00034794,2]
[310199029,1704397879409,-500.0,0.00034794,2]
[310199030,1704397879418,-500.0,0.00034794,2]
[310199031,1704397879428,-500.0,0.00034794,2]
[310199032,1704397879438,-500.0,0.00034794,2]
[310199033,1704397879450,-500.0,0.00034794,2]
[310199034,1704397879461,-283.9570734,0.00034794,2]
[310199035,1704397879471,-500.0,0.00034794,2]
[310199036,1704397879481,-500.0,0.00034794,2]
[310199037,1704397879491,-531.53546192,0.00034794,2]
[310199038,1704397879501,-500.0,0.00034794,2]
[310199039,1704397879510,-500.0,0.00034794,2]
[310199040,1704397879520,-440.43776024,0.00034794,2]
[310199041,1704397879529,-500.0,0.00034794,2]
[310199042,1704397879539,-500.0,0.00034794,2]
[310199043,1704397879549,-500.0,0.00034794,2]
[310199044,1704397879558,-500.0,0.00034794,2]
[310199045,1704397879567,-500.0,0.00034794,2]
[310199046,1704397879577,-500.0,0.00034794,2]
[310199047,1704397879586,-500.0,0.00034794,2]
[310199048,1704397879597,-500.0,0.00034794,2]
[310199049,1704397879606,-500.0,0.00034794,2]
[310199050,1704397879615,-500.0,0.00034794,2]
[310199051,1704397879625,-500.0,0.00034794,2]
[310199052,1704397879635,-500.0,0.00034794,2]
[310199053,1704397879644,-531.0075567,0.00034794,2]
[310199054,1704397879653,-500.0,0.00034794,2]
[310199055,1704397879663,-865.01,0.00034794,2]
[310199056,1704397879673,-316.77284088,0.00034794,2]
[310199057,1704397879682,-500.0,0.00034794,2]
[310199058,1704397879694,-500.0,0.00034794,2]
[310199059,1704397879703,-583.33,0.00034794,2]
[310199060,1704397879714,-500.0,0.00034794,2]
[310199061,1704397879724,-500.0,0.00034794,2]
[310199062,1704397879734,-500.0,0.00034794,2]
[310199063,1704397879744,-500.0,0.00034794,2]
[310199064,1704397879754,-1284.32,0.00034794,2]
[310199065,1704397879763,-579.64,0.00034794,2]
[310199066,1704397879773,-500.0,0.00034794,2]
[310199067,1704397879783,-500.0,0.00034794,2]
[310199068,1704397879793,-500.0,0.00034794,2]
[310199069,1704397879804,-302.43351408,0.00034794,2]
[310199070,1704397879814,-1058.09,0.00034794,2]
[310199071,1704397879823,-277.10999789,0.00034794,2]
[310199072,1704397879833,-500.0,0.00034794,2]
[310199073,1704397879843,-543.63,0.00034794,2]
[310199074,1704397879854,-500.0,0.00034794,2]
[310199075,1704397879865,-500.0,0.00034794,2]
[310199076,1704397879876,-500.0,0.00034794,2]
[310199077,1704397879886,-500.0,0.00034794,2]
[310199078,1704397879896,-1700.97,0.00034794,2]
[310199079,1704397879907,-500.0,0.00034794,2]
[310199080,1704397879918,-324.82366227,0.00034794,2]
[310199081,1704397879927,-863.75,0.00034794,2]
[310199082,1704397879938,-731.04,0.00034794,2]
[310199083,1704397879950,-580.4,0.00034794,2]
[310199084,1704397879960,-359.47434756,0.00034794,2]
[310199085,1704397879970,-500.0,0.00034794,2]
[310199086,1704397879980,-500.0,0.00034794,2]
[310199087,1704397879989,-500.0,0.00034794,2]
[310199088,1704397879999,-500.0,0.00034794,2]
[310199089,1704397880011,-500.0,0.00034794,2]
[310199090,1704397880021,-500.0,0.00034794,2]
[310199091,1704397880031,-500.0,0.00034794,2]
[310199092,1704397880041,-6526.71,0.00034794,2]
[310199093,1704397880051,-2294.31,0.00034794,2]
[310199094,1704397880060,-500.0,0.00034794,2]
[310199095,1704397880071,-722.55,0.00034794,2]
[310199096,1704397880081,-500.0,0.00034794,2]
[310199097,1704397880091,-528.84742808,0.00034794,2]
[310199098,1704397880102,-1691.72,0.00034794,2]
[310199099,1704397880113,-921.24,0.00034794,2]
[310199100,1704397880124,-500.0,0.00034794,2]
[310199101,1704397880135,-589.58,0.00034794,2]
[310199102,1704397880146,-1289.87,0.00034794,2]
[310199103,1704397880155,-500.0,0.00034794,2]
[310199104,1704397880166,-530.57904877,0.00034794,2]
[310199105,1704397880176,-3756.74,0.00034794,2]
[310199106,1704397880187,-1426.77,0.00034794,2]
[310199107,1704397880197,-500.0,0.00034794,2]
[310199108,1704397880207,-210.70938403,0.00034794,2]
[310199109,1704397880217,-500.0,0.00034794,2]
[310199110,1704397880227,-1080.46,0.00034794,2]
[310199111,1704397880236,-2739.45,0.00034794,2]
[310199112,1704397880247,-500.0,0.00034794,2]
[310199113,1704397880257,-500.0,0.00034794,2]
[310199114,1704397880268,-968.76,0.00034794,2]
[310199115,1704397880279,-1542.0,0.00034794,2]
[310199116,1704397880289,-1230.11,0.00034794,2]
[310199117,1704397880301,-500.0,0.00034794,2]
[310199118,1704397880311,-301.63391024,0.00034794,2]
[310199119,1704397880321,-500.0,0.00034794,2]
[310199120,1704397880335,-500.0,0.00034794,2]
[310199121,1704397880347,-500.0,0.00034794,2]
[310199122,1704397880358,-500.0,0.00034794,2]
[310199123,1704397880369,-938.31,0.00034794,2]
[310199124,1704397880379,-600.84,0.00034794,2]
[310199125,1704397880390,-500.0,0.00034794,2]
[310199126,1704397880401,-500.0,0.00034794,2]
[310199127,1704397880412,-500.0,0.00034794,2]
[310199128,1704397880423,-500.0,0.00034794,2]
[310199129,1704397880433,-1230.77,0.00034794,2]
[310199130,1704397880446,-500.0,0.00034794,2]
[310199131,1704397880457,-500.0,0.00034794,2]
[310199132,1704397880467,-500.0,0.00034794,2]
[310199133,1704397880478,-529.04,0.00034794,2]
[310199134,1704397880488,-500.0,0.00034794,2]
[310199135,1704397880499,-514.29,0.00034794,2]
[310199136,1704397880510,-923.67,0.00034794,2]
[310199137,1704397880520,-1091.29,0.00034794,2]
[310199138,1704397880530,-500.0,0.00034794,2]
[310199139,1704397880541,-500.0,0.00034794,2]
[310199140,1704397880551,-989.1,0.00034794,2]
[310199141,1704397880561,-500.0,0.00034794,2]
[310199142,1704397880570,-602.25,0.00034794,2]
[310199143,1704397880581,-500.0,0.00034794,2]
[310199144,1704397880591,-3309.5,0.00034794,2]
[310199145,1704397880601,-500.0,0.00034794,2]
[310199146,1704397880609,-500.0,0.00034794,2]
[310199147,1704397880618,-532.96,0.00034794,2]
[310199148,1704397880627,-500.0,0.00034794,2]
[310199149,1704397880637,-500.0,0.00034794,2]
[310199150,1704397880647,-895.61,0.00034794,2]
[310199151,1704397880658,-765.49,0.00034794,2]
[310199152,1704397880668,-923.89,0.00034794,2]
[310199153,1704397880678,-500.0,0.00034794,2]
[310199154,1704397880689,-222.30234723,0.00034794,2]
[310199155,1704397880701,-500.0,0.00034794,2]
[310199156,1704397880712,-500.0,0.00034794,2]
[310199157,1704397880721,-587.04,0.00034794,2]
[310199158,1704397880731,-1030.36,0.00034794,2]
[310199159,1704397880742,-500.0,0.00034794,2]
[310199160,1704397880752,-500.0,0.00034794,2]
[310199161,1704397880763,-500.0,0.00034794,2]
[310199162,1704397880773,-627.71,0.00034794,2]
[310199163,1704397880784,-500.0,0.00034794,2]
[310199164,1704397880795,-789.2,0.00034794,2]
[310199165,1704397880806,-4224.76,0.00034794,2]
[310199166,1704397880817,-500.0,0.00034794,2]
[310199167,1704397880828,-500.0,0.00034794,2]
[310199168,1704397880839,-5231.08,0.00034794,2]
[310199169,1704397880849,-1469.18,0.00034794,2]
[310199170,1704397880860,-500.0,0.00034794,2]
[310199171,1704397880871,-500.0,0.00034794,2]
[310199172,1704397880882,-500.0,0.00034794,2]
[310199173,1704397880892,-807.05,0.00034794,2]
[310199174,1704397880902,-377.75440812,0.00034794,2]
[310199175,1704397880913,-637.19,0.00034794,2]
[310199176,1704397880923,-500.0,0.00034794,2]
[310199177,1704397880933,-500.0,0.00034794,2]
[310199178,1704397880945,-500.0,0.00034794,2]
[310199179,1704397880956,-565.04,0.00034794,2]
[310199180,1704397880966,-853.71,0.00034794,2]
[310199181,1704397880977,-456.40054174,0.00034794,2]
[310199182,1704397880987,-572.16,0.00034794,2]
[310199183,1704397880997,-500.0,0.00034794,2]
[310199184,1704397881008,-1481.18,0.00034794,2]
[310199185,1704397881021,-1368.13,0.00034794,2]
[310199186,1704397881031,-561.22,0.00034794,2]
[310199187,1704397881041,-500.0,0.00034794,2]
[310199188,1704397881051,-500.0,0.00034794,2]
[310199189,1704397881062,-500.0,0.00034794,2]
[310199190,1704397881073,-1034.34,0.00034794,2]
[310199191,1704397881083,-2410.15,0.00034794,2]
[310199192,1704397881093,-500.0,0.00034794,2]
[310199193,1704397881103,-500.0,0.00034794,2]
[310199194,1704397881114,-500.0,0.00034794,2]
[310199195,1704397881125,-608.70847201,0.00034794,2]
[310199196,1704397881136,-500.0,0.00034794,2]
[310199197,1704397881146,-500.0,0.00034794,2]
[310199198,1704397881156,-500.0,0.00034794,2]
[310199199,1704397881167,-500.0,0.00034794,2]
[310199200,1704397881177,-500.0,0.00034794,2]
[310199201,1704397881187,-600.41,0.00034794,2]
[310199202,1704397881198,-500.0,0.00034794,2]
[310199203,1704397881208,-500.0,0.00034794,2]
[310199204,1704397881219,-500.0,0.00034794,2]
[310199205,1704397881230,-500.0,0.00034794,2]
[310199206,1704397881241,-773.88,0.00034794,2]
[310199207,1704397881253,-222.43857495,0.00034794,2]
[310199208,1704397881264,-500.0,0.00034794,2]
[310199209,1704397881275,-500.0,0.00034794,2]
[310199210,1704397881286,-500.0,0.00034794,2]
[310199211,1704397881298,-876.65,0.00034794,2]
[310199212,1704397881307,-1745.78,0.00034794,2]
[310199213,1704397881318,-529.83,0.00034794,2]
[310199214,1704397881329,-1330.86,0.00034794,2]
[310199215,1704397881339,-3939.72,0.00034794,2]
[310199216,1704397881348,-750.41,0.00034794,2]
[310199217,1704397881358,-1262.44,0.00034794,2]
[310199218,1704397881367,-872.52,0.00034794,2]
[310199219,1704397881377,-805.05,0.00034794,2]
[310199220,1704397881387,-500.0,0.00034794,2]
[310199221,1704397881398,-500.0,0.00034794,2]
[310199222,1704397881407,-978.86,0.00034794,2]
[310199223,1704397881418,-500.0,0.00034794,2]
[310199224,1704397881428,-500.0,0.00034794,2]
[310199225,1704397881438,-500.0,0.00034794,2]
[310199226,1704397881449,-500.0,0.00034794,2]
[310199227,1704397881460,-1031.78,0.00034794,2]
[310199228,1704397881470,-500.0,0.00034794,2]
[310199229,1704397881480,-500.0,0.00034794,2]
[310199230,1704397881492,-500.0,0.00034794,2]
[310199231,1704397881503,-500.0,0.00034794,2]
[310199232,1704397881513,-1359.87,0.00034794,2]
[310199233,1704397881524,-598.11,0.00034794,2]
[310199234,1704397881535,-374.63526592,0.00034794,2]
[310199235,1704397881546,-500.0,0.00034794,2]
[310199236,1704397881557,-500.0,0.00034794,2]
[310199237,1704397881567,-1353.52,0.00034794,2]
[310199238,1704397881577,-500.0,0.00034794,2]
[310199239,1704397881588,-974.78,0.00034794,2]
[310199240,1704397881599,-500.0,0.00034794,2]
[310199241,1704397881610,-500.0,0.00034794,2]
[310199242,1704397881621,-500.0,0.00034794,2]
[310199243,1704397881633,-1044.66,0.00034794,2]
[310199244,1704397881644,-637.82,0.00034794,2]
[310199245,1704397881654,-500.0,0.00034794,2]
[310199246,1704397881666,-205.87456169,0.00034794,2]
[310199247,1704397881677,-2163.78,0.00034794,2]
[310199248,1704397881687,-500.0,0.00034794,2]
[310199249,1704397881699,-500.0,0.00034794,2]
[310199250,1704397881710,-622.8,0.00034794,2]
[310199251,1704397881722,-500.0,0.00034794,2]
[310199252,1704397881733,-500.0,0.00034794,2]
[310199253,1704397881743,-1453.91,0.00034794,2]
[310199254,1704397881754,-1854.45,0.00034794,2]
[310199255,1704397881765,-610.32,0.00034794,2]
[310199256,1704397881775,-574.74,0.00034794,2]
[310199257,1704397881786,-500.0,0.00034794,2]
[310199258,1704397881797,-500.0,0.00034794,2]
[310199259,1704397881808,-500.0,0.00034794,2]
[310199260,1704397881821,-500.0,0.00034794,2]
[310199261,1704397881832,-524.82,0.00034794,2]
[310199262,1704397881842,-500.0,0.00034794,2]
[310199263,1704397881853,-2024.49,0.00034794,2]
[310199264,1704397881864,-500.0,0.00034794,2]
[310199265,1704397881874,-1400.0,0.000348,12]
[310199266,1704397881886,-1146.95,0.00034847,2]
[310199267,1704397881897,-188.44,0.00034861,2]
[310199268,1704397881907,-489.0,0.00034883,3]
[310199269,1704397881918,-287.07812274,0.00034886,24]
[310199270,1704397881930,-762.56867885,0.00034897,2]
[310199271,1704397881940,-150.0,0.00034898,2]
[310199272,1704397881951,-528.804,0.00034899,4]
[310199273,1704397881962,-150.0,0.00034899,2]
[310199274,1704397881973,-598.17,0.00034899,2]
[310199275,1704397881984,-598.17,0.00034899,2]
[310199276,1704397881995,-598.17,0.00034899,2]
[310199277,1704397882006,-598.17,0.00034899,2]
[310199278,1704397882017,-598.17,0.00034899,2]
[310199279,1704397882027,-598.17,0.00034899,2]
[310199280,1704397882037,-598.17,0.00034899,2]
[310199281,1704397882047,-598.17,0.00034899,2]
[310199282,1704397882057,-598.17,0.00034899,2]
[310199283,1704397882067,-598.17,0.00034899,2]
[310199284,1704397882078,-598.18332018,0.00034899,2]
[310199285,1704397882088,-1951936.28195437,0.000349,6]
[310199286,1704397882099,-150.0,0.000349,24]
[310199287,1704397882110,-151.0,0.000349,7]
[310199288,1704397882120,-151.0,0.000349,7]
[310199289,1704397882130,-152.202636,0.000349,7]
[310199290,1704397882140,-190.52537,0.000349,7]
[310199291,1704397882151,-200.0,0.000349,12]
[310199292,1704397882161,-151.0,0.000349,7]
[310199293,1704397882171,-151.0,0.000349,7]
[310199294,1704397882181,-8651.82331733,0.000349,2]
[310199295,1704397882191,-8651.82331721,0.000349,2]
[310199296,1704397882202,-8651.82331721,0.000349,2]
[310199297,1704397882213,-8651.82331721,0.000349,2]
[310199298,1704397882225,-8651.82331721,0.000349,2]
[310199299,1704397882235,-2877.832834,0.00034931,2]
[310199300,1704397882245,-45429.972022,0.00034931,2]
[310199301,1704397882255,-818.496334,0.00034931,2]
[310199302,1704397882264,-150.0,0.00034952,2]
[310199303,1704397882274,-332.84,0.00034952,2]
[310199304,1704397882285,-150.0,0.00034952,2]
[310199305,1704397882296,-300.0,0.00034952,2]
[310199306,1704397882309,-150.0,0.00034952,2]
[310199307,1704397882319,-530.49,0.00034967,2]
[310199308,1704397882331,-200.0,0.00034987,4]
[310199309,1704397882342,-500.0,0.00034987,5]
[310199310,1704397882353,-300.0,0.00034987,3]
[310199311,1704397882364,-1490.0,0.0003499,8]
[310199312,1704397882374,-1957.01935507,0.0003499,5]
[310199313,1704397882384,-150.0,0.00034999,2]
[310199314,1704397882395,-150.0,0.00034999,2]
[310199315,1704397882405,-100000.0,0.00035,5]
[310199316,1704397882415,-1255.60670788,0.00035,4]
[310199317,1704397882425,-4795.82816389,0.00035,7]
[310199318,1704397882436,-446.78845482,0.00035,4]
[310199319,1704397882445,-16395.51223475,0.00035,2]
[310199320,1704397882455,-2500.0,0.00035,2]
[310199321,1704397882465,-201.35722068,0.00035,2]
[310199322,1704397882475,-617.90544107,0.00035,4]
[310199323,1704397882485,-155.0,0.00035,4]
[310199324,1704397882690,-97932.05563908,0.00035,2]
[310199325,1704397882720,-500.0,0.00035,3]
[310199326,1704397882729,-1858560.94410711,0.00035,4]
[310199327,1704397883246,-500.0,0.0003315,2]
[310199328,1704397883257,-500.0,0.00033424,2]
[310199329,1704397883266,-853.3,0.0003452,2]
[310199330,1704397883273,-500.0,0.0003452,2]
[310199331,1704397883282,-853.3,0.00034794,2]
[310199332,1704397883292,-102.60932252,0.00034794,2]
[310199333,1704397883327,-500.0,0.00033698,2]
[310199334,1704397883337,-244.5,0.00034794,2]
[310199335,1704397883348,-152.89067748,0.00034794,2]
[310199336,1704397883358,-134879.62336219,0.00035,4]
[310199337,1704397883367,-2175.13350478,0.00035,4]
[310199338,1704397883376,-34492.34690794,0.00035,2]
[310199339,1704397883386,-300.0,0.00035,36]
[310199340,1704397883395,-155.458,0.00035,7]
[310199341,1704397883404,-151.0,0.00035,7]
[310199342,1704397883413,-151.0,0.00035,7]
[310199343,1704397883423,-500.0,0.00035,3]
[310199344,1704397883433,-151.0,0.00035,7]
[310199345,1704397883443,-151.0,0.00035,7]
[310199346,1704397883454,-450.0,0.00035,3]
[310199347,1704397883464,-396.78202565,0.00035,2]
[310199348,1704397883474,-396.78202565,0.00035,2]
[310199349,1704397883483,-2134.40804249,0.00035,2]
[310199350,1704397883493,-2357.24,0.00035,8]
[310199351,1704397883504,-1803.08,0.00035068,2]
[310199352,1704397883513,-3597.291042,0.00035068,2]
[310199353,1704397883523,-56787.465028,0.00035068,2]
[310199354,1704397883533,-1023.120417,0.00035068,2]
[310199355,1704397883542,-389.2961461,0.00035068,2]
[310199356,1704397883551,-374.08650484,0.00035068,2]
[310199357,1704397883560,-500.0,0.00035068,2]
[310199358,1704397883570,-1807.31,0.00035068,2]
[310199359,1704397883579,-502.4470545,0.00035068,2]
[310199360,1704397883588,-500.0,0.00035068,2]
[310199361,1704397883598,-500.0,0.00035068,2]
[310199362,1704397883607,-500.0,0.00035068,2]
[310199363,1704397883617,-500.0,0.00035068,2]
[310199364,1704397883627,-500.0,0.00035068,2]
[310199365,1704397883637,-500.0,0.00035068,2]
[310199366,1704397883647,-500.0,0.00035068,2]
[310199367,1704397883656,-500.0,0.00035068,2]
[310199368,1704397883666,-500.0,0.00035068,2]
[310199369,1704397883675,-500.0,0.00035068,2]
[310199370,1704397883684,-500.0,0.00035068,2]
[310199371,1704397883694,-607.42,0.00035068,2]
[310199372,1704397883704,-500.0,0.00035068,2]
[310199373,1704397883713,-336.94566335,0.00035068,2]
[310199374,1704397883722,-500.0,0.00035068,2]
[310199375,1704397883731,-500.0,0.00035068,2]
[310199376,1704397883741,-500.0,0.00035068,2]
[310199377,1704397883750,-500.0,0.00035068,2]
[310199378,1704397883759,-470.83229241,0.00035068,2]
[310199379,1704397883769,-500.0,0.00035068,2]
[310199380,1704397883778,-500.0,0.00035068,2]
[310199381,1704397883787,-500.0,0.00035068,2]
[310199382,1704397883797,-500.0,0.00035068,2]
[310199383,1704397883806,-500.0,0.00035068,2]
[310199384,1704397883816,-248.67076171,0.00035068,2]
[310199385,1704397883825,-500.0,0.00035068,2]
[310199386,1704397883834,-500.0,0.00035068,2]
[310199387,1704397883843,-500.0,0.00035068,2]
[310199388,1704397883852,-500.0,0.00035068,2]
[310199389,1704397883862,-500.0,0.00035068,2]
[310199390,1704397883871,-500.0,0.00035068,2]
[310199391,1704397883881,-865.01,0.00035068,2]
[310199392,1704397883890,-500.0,0.00035068,2]
[310199393,1704397883900,-583.33,0.00035068,2]
[310199394,1704397883909,-500.0,0.00035068,2]
[310199395,1704397883918,-500.0,0.00035068,2]
[310199396,1704397883927,-500.0,0.00035068,2]
[310199397,1704397883936,-500.0,0.00035068,2]
[310199398,1704397883947,-1284.32,0.00035068,2]
[310199399,1704397883956,-579.64,0.00035068,2]
[310199400,1704397883966,-500.0,0.00035068,2]
[310199401,1704397883975,-500.0,0.00035068,2]
[310199402,1704397883984,-500.0,0.00035068,2]
[310199403,1704397883994,-1058.09,0.00035068,2]
[310199404,1704397884004,-292.17355445,0.00035068,2]
[310199405,1704397884013,-543.63,0.00035068,2]
[310199406,1704397884023,-500.0,0.00035068,2]
[310199407,1704397884032,-500.0,0.00035068,2]
[310199408,1704397884042,-500.0,0.00035068,2]
[310199409,1704397884051,-1700.97,0.00035068,2]
[310199410,1704397884061,-500.0,0.00035068,2]
[310199411,1704397884070,-863.75,0.00035068,2]
[310199412,1704397884079,-731.04,0.00035068,2]
[310199413,1704397884089,-580.4,0.00035068,2]
[310199414,1704397884098,-500.0,0.00035068,2]
[310199415,1704397884107,-500.0,0.00035068,2]
[310199416,1704397884117,-500.0,0.00035068,2]
[310199417,1704397884127,-500.0,0.00035068,2]
[310199418,1704397884136,-561.22725622,0.00035068,2]
[310199419,1704397884146,-500.0,0.00035068,2]
[310199420,1704397884156,-500.0,0.00035068,2]
[310199421,1704397884165,-6526.71,0.00035068,2]
[310199422,1704397884175,-2294.31,0.00035068,2]
[310199423,1704397884184,-500.0,0.00035068,2]
[310199424,1704397884194,-722.55,0.00035068,2]
[310199425,1704397884204,-1691.72,0.00035068,2]
[310199426,1704397884213,-921.24,0.00035068,2]
[310199427,1704397884223,-500.0,0.00035068,2]
[310199428,1704397884233,-589.58,0.00035068,2]
[310199429,1704397884242,-1289.87,0.00035068,2]
[310199430,1704397884252,-500.0,0.00035068,2]
[310199431,1704397884262,-3756.74,0.00035068,2]
[310199432,1704397884271,-1426.77,0.00035068,2]
[310199433,1704397884281,-500.0,0.00035068,2]
[310199434,1704397884290,-500.0,0.00035068,2]
[310199435,1704397884301,-598.43,0.00035068,2]
[310199436,1704397884312,-1080.46,0.00035068,2]
[310199437,1704397884322,-2739.45,0.00035068,2]
[310199438,1704397884332,-500.0,0.00035068,2]
[310199439,1704397884342,-618.51107516,0.00035068,2]
[310199440,1704397884352,-968.76,0.00035068,2]
[310199441,1704397884361,-1542.0,0.00035068,2]
[310199442,1704397884372,-1230.11,0.00035068,2]
[310199443,1704397884382,-500.0,0.00035068,2]
[310199444,1704397884391,-549.57878712,0.00035068,2]
[310199445,1704397884404,-500.0,0.00035068,2]
[310199446,1704397884415,-500.0,0.00035068,2]
[310199447,1704397884425,-500.0,0.00035068,2]
[310199448,1704397884435,-938.31,0.00035068,2]
[310199449,1704397884444,-600.84,0.00035068,2]
[310199450,1704397884456,-500.0,0.00035068,2]
[310199451,1704397884466,-500.0,0.00035068,2]
[310199452,1704397884476,-336.02371277,0.00035068,2]
[310199453,1704397884487,-500.0,0.00035068,2]
[310199454,1704397884496,-1230.77,0.00035068,2]
[310199455,1704397884507,-500.0,0.00035068,2]
[310199456,1704397884516,-500.0,0.00035068,2]
[310199457,1704397884526,-298.48894663,0.00035068,2]
[310199458,1704397884535,-500.0,0.00035068,2]
[310199459,1704397884545,-529.04,0.00035068,2]
[310199460,1704397884555,-514.29,0.00035068,2]
[310199461,1704397884564,-923.67,0.00035068,2]
[310199462,1704397884574,-1091.29,0.00035068,2]